fUSD/lending_fUSD_20241205
["ID","MTS","AMOUNT","RATE_DAILY","PERIOD"]
[344412138,1733421051403,-732.68,9.999e-05,2]
[344412139,1733421051412,-732.68,9.999e-05,2]
[344412140,1733421051422,-732.68,9.999e-05,2]
[344412141,1733421051432,-732.68,9.999e-05,2]
[344412142,1733421051442,-732.68,9.999e-05,2]
[344412143,1733421051452,-732.68,9.999e-05,2]
[344412144,1733421051463,-732.68,9.999e-05,2]
[344412145,1733421051473,-732.68,9.999e-05,2]
[344412146,1733421051483,-732.68,9.999e-05,2]
[344412147,1733421051493,-732.68,9.999e-05,2]
[344412148,1733421051504,-732.74,9.999e-05,2]
[344412149,1733421051514,-500.0,9.999e-05,2]
[344412150,1733421051524,-500.0,9.999e-05,2]
[344412151,1733421051755,-500.0,9.999e-05,2]
[344412152,1733421051766,-500.0,9.999e-05,2]
[344412153,1733421051776,-500.0,9.999e-05,2]
[344412154,1733421051785,-500.0,9.999e-05,2]
[344412155,1733421051795,-500.0,9.999e-05,2]
[344412156,1733421051804,-500.0,9.999e-05,2]
[344412157,1733421051814,-500.0,9.999e-05,2]
[344412158,1733421051824,-500.0,9.999e-05,2]
[344412159,1733421051836,-439.51,9.999e-05,2]
[344412160,1733421051845,-500.0,9.999e-05,2]
[344412161,1733421051855,-500.0,9.999e-05,2]
[344412162,1733421051864,-500.0,9.999e-05,2]
[344412163,1733421051873,-500.0,9.999e-05,2]
[344412164,1733421051883,-500.0,9.999e-05,2]
[344412165,1733421051893,-500.0,9.999e-05,2]
[344412166,1733421051903,-556.86,9.999e-05,2]
[344412167,1733421051912,-162.127,0.0001,2]
[344412168,1733421051922,-1000.0,0.0001,2]
[344412169,1733421051932,-1000.0,0.0001,2]
[344412170,1733421051941,-1000.0,0.0001,2]
[344412171,1733421051951,-1000.0,0.0001,2]
[344412172,1733421051960,-1000.0,0.0001,2]
[344412173,1733421051970,-1000.0,0.0001,2]
[344412174,1733421051979,-1000.0,0.0001,2]
[344412175,1733421051988,-1000.0,0.0001,2]
[344412176,1733421051998,-2000.0,0.0001,2]
[344412177,1733421052014,-200.0,0.0001,2]
[344412178,1733421052023,-2000.0,0.0001,2]
[344412179,1733421052032,-200.0,0.0001,2]
[344412180,1733421052041,-894.34123318,0.0001,2]
[344412181,1733421052050,-200.0,0.0001,2]
[344412182,1733421052059,-200.0,0.00010099,2]
[344412183,1733421052068,-2000.0,0.000101,2]
[344412184,1733421052077,-200.0,0.000101,2]
[344412185,1733421052086,-2000.0,0.000101,2]
[344412186,1733421052095,-200.0,0.000101,2]
[344412187,1733421052104,-200.0,0.000101,2]
[344412188,1733421052113,-496.19,0.00010124,2]
[344412189,1733421052124,-202.2,0.000102,2]
[344412190,1733421052133,-202.2,0.000102,2]
[344412191,1733421052142,-985.89,0.000102,2]
[344412192,1733421052151,-200.0,0.000102,2]
[344412193,1733421052160,-2000.0,0.00010201,2]
[344412194,1733421052169,-200.0,0.00010201,2]
[344412195,1733421052178,-2000.0,0.00010201,2]
[344412196,1733421052187,-200.0,0.00010201,2]
[344412197,1733421052196,-200.0,0.00010201,2]
[344412198,1733421052205,-200.0,0.00010302,2]
[344412199,1733421052215,-2000.0,0.00010303,2]
[344412200,1733421052226,-200.0,0.00010303,2]
[344412201,1733421052236,-2000.0,0.00010303,2]
[344412202,1733421052245,-200.0,0.00010303,2]
[344412203,1733421052256,-200.0,0.00010303,2]
[344412204,1733421052266,-5244.41,0.00010382,2]
[344412205,1733421052275,-200.0,0.00010405,2]
[344412206,1733421052284,-2000.0,0.00010406,2]
[344412207,1733421052295,-200.0,0.00010406,2]
[344412208,1733421052304,-2000.0,0.00010406,2]
[344412209,1733421052314,-200.0,0.00010406,2]
[344412210,1733421052322,-200.0,0.00010406,2]
[344412211,1733421052331,-2216.39,0.00010475,2]
[344412212,1733421052341,-3732.26,0.00010475,2]
[344412213,1733421052350,-500.0,0.00010475,2]
[344412214,1733421052360,-1139.44,0.00010475,2]
[344412215,1733421052371,-9999.99,0.00010475,2]
[344412216,1733421052381,-20736.49,0.00010475,2]
[344412217,1733421052393,-19137.75,0.00010475,2]
[344412218,1733421052403,-799.99,0.00010682,2]
[344412219,1733421052412,-500.0,0.00010795,2]
[344412220,1733421052422,-500.0,0.00010904,2]
[344412221,1733421052432,-500.0,0.00010904,2]
[344412222,1733421052442,-500.0,0.00010904,2]
[344412223,1733421052454,-500.0,0.00010904,2]
[344412224,1733421052463,-185.33,0.00010918,2]
[344412225,1733421052472,-1000.0,0.0001093,2]
[344412226,1733421052482,-150.0,0.00010959,2]
[344412227,1733421052491,-1131.17,0.00011312,2]
[344412228,1733421052502,-2924.88,0.00011312,2]
[344412229,1733421052511,-2817.56,0.00011312,2]
[344412230,1733421052521,-2623.42,0.00011312,2]
[344412231,1733421052531,-177.99,0.00011413,2]
[344412232,1733421052541,-6181.91,0.00011507,2]
[344412233,1733421052550,-2751.0,0.00011507,2]
[344412234,1733421052561,-157.2,0.00012,2]
[344412235,1733421052571,-1051.03398403,0.00012082,2]
[344412236,1733421052581,-1000.0,0.00012128,2]
[344412237,1733421052591,-1000.0,0.00012296,2]
[344412238,1733421052602,-54450.1,0.00012329,2]
[344412239,1733421052611,-500.0,0.00012377,2]
[344412240,1733421052622,-500.0,0.00012377,2]
[344412241,1733421052632,-500.0,0.00012377,2]
[344412242,1733421052642,-500.0,0.00012377,2]
[344412243,1733421052651,-500.0,0.00012377,2]
[344412244,1733421052660,-500.0,0.00012377,2]
[344412245,1733421052670,-5244.41,0.00012545,2]
[344412246,1733421052680,-1000.0,0.0001267,2]
[344412247,1733421052690,-1262.0,0.0001277,2]
[344412248,1733421052700,-566.0,0.0001277,2]
[344412249,1733421052710,-150.0,0.0001277,2]
[344412250,1733421052720,-1198.212,0.0001277,2]
[344412251,1733421052732,-151.0,0.00013151,2]
[344412252,1733421052742,-2957.68,0.000135,7]
[344412253,1733421052753,-500.0,0.00013597,2]
[344412254,1733421052762,-977.23,0.00013597,2]
[344412255,1733421052772,-967.07,0.00013597,2]
[344412256,1733421052781,-513.4347167,0.00013597,2]
[344412257,1733421052791,-500.0,0.00013597,2]
[344412258,1733421052800,-500.0,0.00013597,2]
[344412259,1733421052809,-500.0,0.00013597,2]
[344412260,1733421052818,-500.0,0.00013597,2]
[344412261,1733421052828,-500.0,0.00013597,2]
[344412262,1733421052837,-500.0,0.00013597,2]
[344412263,1733421052847,-500.0,0.00013597,2]
[344412264,1733421052856,-500.0,0.00013597,2]
[344412265,1733421052865,-1540.51,0.00013597,2]
[344412266,1733421052874,-1033.72,0.00013597,2]
[344412267,1733421052884,-500.0,0.00013597,2]
[344412268,1733421052893,-1283.64,0.00013597,2]
[344412269,1733421052904,-500.0,0.00013597,2]
[344412270,1733421052913,-500.0,0.00013597,2]
[344412271,1733421052923,-500.0,0.00013597,2]
[344412272,1733421052932,-500.0,0.00013597,2]
[344412273,1733421052942,-500.0,0.00013597,2]
[344412274,1733421052953,-500.0,0.00013597,2]
[344412275,1733421052962,-500.0,0.00013597,2]
[344412276,1733421052973,-500.0,0.00013597,2]
[344412277,1733421052982,-500.0,0.00013597,2]
[344412278,1733421052992,-655.5,0.00013597,2]
[344412279,1733421053003,-972.84,0.00013597,2]
[344412280,1733421053013,-500.0,0.00013597,2]
[344412281,1733421053022,-500.0,0.00013597,2]
[344412282,1733421053032,-500.0,0.00013597,2]
[344412283,1733421053042,-500.0,0.00013597,2]
[344412284,1733421053051,-500.0,0.00013597,2]
[344412285,1733421053061,-500.0,0.00013597,2]
[344412286,1733421053071,-500.0,0.00013597,2]
[344412287,1733421053080,-500.0,0.00013661,2]
[344412288,1733421053091,-500.0,0.00013661,2]
[344412289,1733421053100,-500.0,0.00013661,2]
[344412290,1733421053109,-500.0,0.00013661,2]
[344412291,1733421053119,-500.0,0.00013661,2]
[344412292,1733421053128,-489.25432971,0.00013661,2]
[344412293,1733421053138,-500.0,0.00013661,2]
[344412294,1733421053147,-500.0,0.00013661,2]
[344412295,1733421053157,-500.0,0.00013661,2]
[344412296,1733421053166,-500.0,0.00013661,2]
[344412297,1733421053175,-500.0,0.00013661,2]
[344412298,1733421053185,-500.0,0.00013661,2]
[344412299,1733421053195,-685.97,0.00013661,2]
[344412300,1733421053206,-500.0,0.00013661,2]
[344412301,1733421053216,-500.0,0.00013661,2]
[344412302,1733421053226,-1000.0,0.00013662,2]
[344412303,1733421053240,-1131.17,0.00013697,2]
[344412304,1733421053250,-2924.88,0.00013697,2]
[344412305,1733421053262,-2817.56,0.00013697,2]
[344412306,1733421053272,-2623.42,0.00013697,2]
[344412307,1733421053282,-500.0,0.00013698,2]
[344412308,1733421053291,-500.0,0.00013698,2]
[344412309,1733421053303,-500.0,0.00013698,2]
[344412310,1733421053312,-500.0,0.00013698,2]
[344412311,1733421053321,-500.0,0.00013698,2]
[344412312,1733421053331,-500.0,0.00013698,2]
[344412313,1733421053340,-500.0,0.00013698,2]
[344412314,1733421053350,-500.0,0.00013698,2]
[344412315,1733421053359,-500.0,0.00013698,2]
[344412316,1733421053368,-500.0,0.00013698,2]
[344412317,1733421053377,-2216.39,0.00013698,2]
[344412318,1733421053387,-500.0,0.00013698,2]
[344412319,1733421053397,-685.97,0.00013698,2]
[344412320,1733421053406,-3732.26,0.00013698,2]
[344412321,1733421053416,-8132.18,0.00013698,5]
[344412322,1733421053425,-500.0,0.00013698,2]
[344412323,1733421053435,-8132.18,0.00013698,5]
[344412324,1733421053444,-8132.18,0.00013698,5]
[344412325,1733421053454,-8132.18,0.00013698,5]
[344412326,1733421053463,-8132.18,0.00013698,5]
[344412327,1733421053472,-500.0,0.00013698,2]
[344412328,1733421053481,-500.0,0.00013698,2]
[344412329,1733421053491,-1139.44,0.00013698,2]
[344412330,1733421053501,-500.0,0.00013699,2]
[344412331,1733421053511,-500.0,0.00013699,2]
[344412332,1733421053521,-500.0,0.00013699,2]
[344412333,1733421053531,-7000.0,0.00013699,2]
[344412334,1733421053540,-150.0,0.00013699,2]
[344412335,1733421053550,-200.0,0.00013699,2]
[344412336,1733421053559,-500.0,0.00013699,2]
[344412337,1733421053568,-500.0,0.00013699,2]
[344412338,1733421053578,-500.0,0.00013699,2]
[344412339,1733421053587,-977.23,0.00013699,2]
[344412340,1733421053596,-967.07,0.00013699,2]
[344412341,1733421053606,-500.0,0.00013699,2]
[344412342,1733421053617,-500.0,0.00013699,2]
[344412343,1733421053628,-251.05591884,0.00013699,2]
[344412344,1733421053637,-500.0,0.00013699,2]
[344412345,1733421053646,-193.25713428,0.00013699,2]
[344412346,1733421053656,-500.0,0.00013699,2]
[344412347,1733421053665,-500.0,0.00013699,2]
[344412348,1733421053674,-500.0,0.00013699,2]
[344412349,1733421053683,-1540.51,0.00013699,2]
[344412350,1733421053692,-1033.72,0.00013699,2]
[344412351,1733421053701,-500.0,0.00013699,2]
[344412352,1733421053711,-1283.64,0.00013699,2]
[344412353,1733421053721,-500.0,0.00013699,2]
[344412354,1733421053730,-500.0,0.00013699,2]
[344412355,1733421053739,-500.0,0.00013699,2]
[344412356,1733421053748,-500.0,0.00013699,2]
[344412357,1733421053758,-500.0,0.00013699,2]
[344412358,1733421053767,-500.0,0.00013699,2]
[344412359,1733421053776,-500.0,0.00013699,2]
[344412360,1733421053785,-500.0,0.00013699,2]
[344412361,1733421053796,-500.0,0.00013699,2]
[344412362,1733421053805,-655.5,0.00013699,2]
[344412363,1733421053815,-972.84,0.00013699,2]
[344412364,1733421053824,-500.0,0.00013699,2]
[344412365,1733421053833,-500.0,0.00013699,2]
[344412366,1733421053843,-500.0,0.00013699,2]
[344412367,1733421053852,-516.49,0.00013699,2]
[344412368,1733421053861,-500.0,0.00013699,2]
[344412369,1733421053870,-421.15173571,0.00013699,2]
[344412370,1733421053880,-528.67,0.000137,2]
[344412371,1733421053889,-528.67,0.000137,2]
[344412372,1733421053899,-528.67,0.000137,2]
[344412373,1733421053908,-528.67,0.000137,2]
[344412374,1733421053917,-528.67,0.000137,2]
[344412375,1733421053926,-528.67,0.000137,2]
[344412376,1733421053935,-528.67,0.000137,2]
[344412377,1733421053944,-528.67,0.000137,2]
[344412378,1733421053953,-528.67,0.000137,2]
[344412379,1733421053962,-528.67,0.000137,2]
[344412380,1733421053971,-3161.22,0.000137,2]
[344412381,1733421053982,-3161.22,0.000137,2]
[344412382,1733421053991,-3161.22,0.000137,2]
[344412383,1733421054000,-3161.22,0.000137,2]
[344412384,1733421054015,-3161.22,0.000137,2]
[344412385,1733421054025,-150.0,0.00014059,2]
[344412386,1733421054035,-676.35302874,0.00014247,2]
[344412387,1733421054044,-600.0,0.00014405,2]
[344412388,1733421054053,-150.0,0.0001442,2]
[344412389,1733421054062,-151.94364693,0.00014503,2]
[344412390,1733421054072,-150.0,0.00014503,2]
[344412391,1733421054080,-258.89932418,0.00014503,2]
[344412392,1733421054146,-500.0,0.00014503,2]
[344412393,1733421054156,-150.0,0.00014503,2]
[344412394,1733421054165,-500.0,0.00014503,2]
[344412395,1733421054173,-200.02704492,0.00014503,2]
[344412396,1733421054182,-500.0,0.00014503,2]
[344412397,1733421054191,-150.0,0.00014503,2]
[344412398,1733421054200,-1610.0,0.00014503,2]
[344412399,1733421054210,-500.0,0.00014503,2]
[344412400,1733421054223,-500.0,0.00014503,2]
[344412401,1733421054232,-265.49585095,0.00014503,2]
[344412402,1733421054241,-241.5568971,0.00014652,2]
[344412403,1733421054251,-5244.41,0.00014708,2]
[344412404,1733421054266,-168.00929737,0.00014777,2]
[344412405,1733421054275,-931.05656706,0.00014777,2]
[344412406,1733421054284,-150.0,0.00014777,2]
[344412407,1733421054296,-500.0,0.00014777,2]
[344412408,1733421054306,-500.0,0.00014777,2]
[344412409,1733421054315,-1610.0,0.00014777,2]
[344412410,1733421054325,-500.0,0.00014777,2]
[344412411,1733421054334,-500.0,0.00014777,2]
[344412412,1733421054343,-150.0,0.0001478,2]
[344412413,1733421054353,-906.0,0.000149,2]
[344412414,1733421054363,-450.0,0.00015,2]
[344412415,1733421054372,-450.0,0.00015,2]
[344412416,1733421054382,-1055.0,0.00015021,2]
[344412417,1733421054391,-1000.0,0.00015029,2]
[344412418,1733421054400,-600.0,0.00015045,2]
[344412419,1733421054409,-600.0,0.00015045,2]
[344412420,1733421054418,-191.55415905,0.00015051,2]
[344412421,1733421054428,-500.0,0.00015051,2]
[344412422,1733421054437,-500.0,0.00015051,2]
[344412423,1733421054447,-1610.0,0.00015051,2]
[344412424,1733421054456,-500.0,0.00015051,2]
[344412425,1733421054465,-500.0,0.00015051,2]
[344412426,1733421054475,-300.0,0.00015068,2]
[344412427,1733421054484,-150.0,0.00015141,2]
[344412428,1733421054493,-500.0,0.00015325,2]
[344412429,1733421054503,-500.0,0.00015325,2]
[344412430,1733421054514,-1610.0,0.00015325,2]
[344412431,1733421054523,-500.0,0.00015325,2]
[344412432,1733421054532,-500.0,0.00015325,2]
[344412433,1733421054541,-500.0,0.000155,2]
[344412434,1733421054551,-150.0,0.00015501,2]
[344412435,1733421054559,-500.0,0.00015599,2]
[344412436,1733421054570,-650.0,0.00015599,2]
[344412437,1733421054579,-1610.0,0.00015599,2]
[344412438,1733421054590,-500.0,0.00015599,2]
[344412439,1733421054600,-500.0,0.00015599,2]
[344412440,1733421054610,-333.64,0.0001577,2]
[344412441,1733421054620,-1055.0,0.00015772,2]
[344412442,1733421054630,-150.0,0.00015862,2]
[344412443,1733421054641,-500.0,0.00015873,2]
[344412444,1733421054651,-1610.0,0.00015873,2]
[344412445,1733421054661,-500.0,0.00015873,2]
[344412446,1733421054670,-9999.99,0.00016116,2]
[344412447,1733421054680,-500.0,0.00016147,2]
[344412448,1733421054690,-1610.0,0.00016147,2]
[344412449,1733421054700,-500.0,0.00016147,2]
[344412450,1733421054709,-600.0,0.00016158,2]
[344412451,1733421054719,-600.0,0.00016158,2]
[344412452,1733421054729,-150.0,0.00016222,2]
[344412453,1733421054739,-1000.0,0.00016395,2]
[344412454,1733421054749,-500.0,0.00016421,2]
[344412455,1733421054761,-1610.0,0.00016421,2]
[344412456,1733421054771,-500.0,0.00016421,2]
[344412457,1733421054780,-151.0,0.00016438,2]
[344412458,1733421054790,-300.0,0.00016438,2]
[344412459,1733421054800,-150.0,0.00016583,2]
[344412460,1733421054811,-1121.44,0.00016658,30]
[344412461,1733421054824,-500.0,0.00016695,2]
[344412462,1733421054836,-1610.0,0.00016695,2]
[344412463,1733421054846,-627.10890025,0.00016695,2]
[344412464,1733421054856,-219.18,0.00016712,2]
[344412465,1733421054865,-1200.0,0.0001678,2]
[344412466,1733421054874,-5244.41,0.00016871,2]
[344412467,1733421054883,-150.0,0.00016943,2]
[344412468,1733421054894,-565.01273424,0.00016969,2]
[344412469,1733421054911,-1610.0,0.00016969,2]
[344412470,1733421054922,-1131.17,0.00016991,2]
[344412471,1733421054933,-2924.88,0.00016991,2]
[344412472,1733421054943,-2817.56,0.00016991,2]
[344412473,1733421054953,-2623.42,0.00016991,2]
[344412474,1733421054963,-8132.18,0.00016991,5]
[344412475,1733421054973,-500.0,0.00017,2]
[344412476,1733421054983,-500.0,0.00017,2]
[344412477,1733421054993,-2464.73,0.000172,14]
[344412478,1733421055004,-1610.0,0.00017243,2]
[344412479,1733421055015,-150.0,0.00017304,2]
[344412480,1733421055026,-500.0,0.0001736,2]
[344412481,1733421055035,-200.0,0.0001736,2]
[344412482,1733421055046,-1610.0,0.00017517,2]
[344412483,1733421055059,-150.0,0.00017664,2]
[344412484,1733421055068,-1891.44271091,0.00017776,2]
[344412485,1733421055079,-1610.0,0.00017791,2]
[344412486,1733421055088,-500.0,0.00017876,2]
[344412487,1733421055097,-1200.0,0.00017876,2]
[344412488,1733421055108,-150.0,0.00018025,2]
[344412489,1733421055118,-1610.0,0.00018065,2]
[344412490,1733421055127,-1065.06255906,0.00018313,2]
[344412491,1733421055136,-1610.0,0.00018339,2]
[344412492,1733421055146,-150.0,0.00018385,2]
[344412493,1733421055155,-1610.0,0.00018613,2]
[344412494,1733421055164,-48915.0,0.00018619,2]
[344412495,1733421055173,-150.0,0.00018746,2]
[344412496,1733421055183,-1610.0,0.00018887,2]
[344412497,1733421055192,-1400.0,0.00018972,2]
[344412498,1733421055202,-1200.0,0.00018972,2]
[344412499,1733421055211,-550.0,0.00019,2]
[344412500,1733421055224,-550.0,0.00019,2]
[344412501,1733421055234,-5244.41,0.00019034,2]
[344412502,1733421055243,-150.0,0.00019106,2]
[344412503,1733421055254,-1610.0,0.00019161,2]
[344412504,1733421055265,-603.5,0.00019178,2]
[344412505,1733421055275,-521.0,0.000192,7]
[344412506,1733421055284,-500.0,0.0001922,2]
[344412507,1733421055294,-1121.44,0.00019242,30]
[344412508,1733421055304,-637.81269189,0.000194,2]
[344412509,1733421055315,-1610.0,0.00019435,2]
[344412510,1733421055324,-150.0,0.00019467,2]
[344412511,1733421055333,-19931.68798146,0.0001961,2]
[344412512,1733421055343,-521.0,0.000197,7]
[344412513,1733421055353,-1611.12212597,0.00019708,2]
[344412514,1733421055362,-150.0,0.00019827,2]
[344412515,1733421055371,-2577.701,0.00019881,2]
[344412516,1733421055380,-171.69,0.00019899,2]
[344412517,1733421055389,-152.76,0.000199,31]
[344412518,1733421055399,-152.76,0.000199,31]
[344412519,1733421055407,-152.76,0.000199,31]
[344412520,1733421055416,-152.76,0.000199,31]
[344412521,1733421055425,-152.76,0.000199,31]
[344412522,1733421055434,-152.76,0.000199,31]
[344412523,1733421055443,-152.76,0.000199,31]
[344412524,1733421055452,-152.76,0.000199,31]
[344412525,1733421055461,-152.76,0.000199,31]
[344412526,1733421055470,-152.76,0.000199,31]
[344412527,1733421055479,-152.76,0.000199,31]
[344412528,1733421055488,-2216.39,0.00019998,2]
[344412529,1733421055498,-3732.26,0.00019998,2]
[344412530,1733421055509,-500.0,0.00019998,2]
[344412531,1733421055519,-1139.44,0.00019998,2]
[344412532,1733421055528,-500.0,0.00019999,2]
[344412533,1733421055538,-977.23,0.00019999,2]
[344412534,1733421055547,-967.07,0.00019999,2]
[344412535,1733421055556,-500.0,0.00019999,2]
[344412536,1733421055565,-500.0,0.00019999,2]
[344412537,1733421055575,-500.0,0.00019999,2]
[344412538,1733421055585,-500.0,0.00019999,2]
[344412539,1733421055594,-500.0,0.00019999,2]
[344412540,1733421055603,-500.0,0.00019999,2]
[344412541,1733421055613,-1540.51,0.00019999,2]
[344412542,1733421055622,-1033.72,0.00019999,2]
[344412543,1733421055631,-500.0,0.00019999,2]
[344412544,1733421055640,-1283.64,0.00019999,2]
[344412545,1733421055651,-500.0,0.00019999,2]
[344412546,1733421055660,-500.0,0.00019999,2]
[344412547,1733421055669,-500.0,0.00019999,2]
[344412548,1733421055678,-500.0,0.00019999,2]
[344412549,1733421055687,-500.0,0.00019999,2]
[344412550,1733421055695,-396.94,0.00019999,2]
[344412551,1733421055704,-500.0,0.00019999,2]
[344412552,1733421055713,-500.0,0.00019999,2]
[344412553,1733421055722,-500.0,0.00019999,2]
[344412554,1733421055731,-655.5,0.00019999,2]
[344412555,1733421055740,-500.0,0.00019999,2]
[344412556,1733421055750,-267.12,0.00019999,2]
[344412557,1733421055760,-500.0,0.00019999,2]
[344412558,1733421055770,-972.84,0.00019999,2]
[344412559,1733421055779,-500.0,0.00019999,2]
[344412560,1733421055788,-373.34300917,0.00019999,2]
[344412561,1733421055799,-500.0,0.00019999,2]
[344412562,1733421055808,-500.0,0.00019999,2]
[344412563,1733421055819,-500.0,0.00019999,2]
[344412564,1733421055829,-406.01619121,0.00019999,2]
[344412565,1733421055838,-500.0,0.00019999,2]
[344412566,1733421055849,-513.18576007,0.00019999,2]
[344412567,1733421055859,-500.0,0.00019999,2]
[344412568,1733421055870,-251.54048739,0.00019999,2]
[344412569,1733421055882,-685.97,0.00019999,2]
[344412570,1733421055892,-500.0,0.00019999,2]
[344412571,1733421055902,-500.0,0.00019999,2]
[344412572,1733421055911,-500.0,0.00019999,2]
[344412573,1733421055921,-150.0,0.0002,2]
[344412574,1733421055932,-37047.0,0.0002,3]
[344412575,1733421055941,-52010.0,0.0002,4]
[344412576,1733421055950,-289.72108489,0.0002,30]
[344412577,1733421055959,-158.0,0.0002,2]
[344412578,1733421055968,-10000.0,0.0002,5]
[344412579,1733421055978,-500.0,0.00020067,2]
[344412580,1733421055988,-500.0,0.00020067,2]
[344412581,1733421055997,-500.0,0.00020067,2]
[344412582,1733421056007,-500.0,0.00020067,2]
[344412583,1733421056017,-500.0,0.00020067,2]
[344412584,1733421056026,-1400.0,0.00020068,2]
[344412585,1733421056034,-1200.0,0.00020068,2]
[344412586,1733421056043,-500.0,0.00020068,2]
[344412587,1733421056053,-150.0,0.00020099,15]
[344412588,1733421056063,-150.0,0.00020188,2]
[344412589,1733421056072,-1891.44271085,0.00020189,2]
[344412590,1733421056081,-521.0,0.000202,8]
[344412591,1733421056091,-151.0,0.00020548,2]
[344412592,1733421056100,-150.0,0.00020548,2]
[344412593,1733421056109,-521.0,0.000207,8]
[344412594,1733421056119,-375.0,0.0002074,2]
[344412595,1733421056128,-150.0,0.00021,2]
[344412596,1733421056137,-600.0,0.00021,2]
[344412597,1733421056146,-600.0,0.00021,2]
[344412598,1733421056155,-500.0,0.0002108,2]
[344412599,1733421056164,-1400.0,0.00021164,2]
[344412600,1733421056172,-5244.41,0.00021197,2]
[344412601,1733421056182,-521.0,0.000212,9]
[344412602,1733421056191,-1131.17,0.00021546,2]
[344412603,1733421056200,-2924.88,0.00021546,2]
[344412604,1733421056209,-2817.56,0.00021546,2]
[344412605,1733421056219,-2623.42,0.00021546,2]
[344412606,1733421056232,-8132.18,0.00021546,5]
[344412607,1733421056242,-521.0,0.000217,9]
[344412608,1733421056251,-1121.44,0.00021826,30]
[344412609,1733421056262,-562.23,0.00021917,2]
[344412610,1733421056271,-562.23,0.00021917,2]
[344412611,1733421056280,-562.23,0.00021917,2]
[344412612,1733421056289,-562.23,0.00021917,2]
[344412613,1733421056299,-562.23,0.00021917,2]
[344412614,1733421056310,-500.0,0.00021917,2]
[344412615,1733421056321,-500.0,0.00021917,2]
[344412616,1733421056331,-370.14861336,0.00021917,2]
[344412617,1733421056341,-224.13,0.00021918,2]
[344412618,1733421056351,-200.0,0.00022,2]
[344412619,1733421056361,-521.0,0.000222,10]
[344412620,1733421056371,-1400.0,0.0002226,2]
[344412621,1733421056380,-1200.0,0.0002226,2]
[344412622,1733421056389,-500.0,0.0002226,2]
[344412623,1733421056398,-1500.0,0.00022531,2]
[344412624,1733421056408,-1891.44271085,0.00022601,2]
[344412625,1733421056417,-603.5,0.00022603,2]
[344412626,1733421056426,-521.0,0.000227,10]
[344412627,1733421056436,-500.0,0.00022939,2]
[344412628,1733421056445,-650.0,0.00023,2]
[344412629,1733421056455,-650.0,0.00023,2]
[344412630,1733421056464,-200.0,0.00023,2]
[344412631,1733421056473,-535.689282,0.00023106,120]
[344412632,1733421056483,-521.0,0.000232,11]
[344412633,1733421056494,-718.85826103,0.00023204,2]
[344412634,1733421056503,-1500.0,0.00023287,2]
[344412635,1733421056515,-1500.0,0.00023287,2]
[344412636,1733421056524,-1500.0,0.00023287,2]
[344412637,1733421056534,-444.41383325,0.00023287,2]